[Event "GCT Superbet Romania 2022"]
[Site "Bucharest"]
[Date "2022.05.09"]
[Round "5.4"]
[White "Caruana, Fabiano"]
[Black "Mamedyarov, Shakhriyar"]
[Result "1-0"]
[ECO "C42"]
[WhiteElo "2786"]
[BlackElo "2770"]
[Annotator "TA"]
[PlyCount "131"]
[EventDate "2022.05.05"]
[EventType "tourn"]
[EventCountry "ROU"]
[SourceTitle "playchess.com"]
[Source "ChessBase"]
[SourceQuality "1"]
[TimeControl "40/5400+30:1800+30"]

{[%evp 15,131,22,24,23,25,15,20,20,33,23,25,20,31,21,35,0,0,0,0,0,18,17,17,16,17,9,10,15,77,72,134,98,91,55,55,43,37,36,30,31,41,31,45,0,34,39,127,87,115,123,127,109,111,114,143,0,0,13,10,7,13,0,0,0,35,0,54,44,59,54,93,31,68,72,65,77,148,70,76,73,75,80,80,68,286,275,300,309,311,0,47,0,291,311,310,301,289,0,5,0,289,282,260,268,263,264,377,343,404,400,400,390,394,393,370,367,352,284]} 1. e4 {[%emt 0:00:03]} e5 {[%emt 0:00:06]} 2. Nf3 {[%emt 0:00:04]} Nf6 {[%emt 0:00:08]} 3. Nxe5 {[%emt 0:00:07]} d6 {[%emt 0:00:04]} 4. Nf3 {[%emt 0:00:04]} Nxe4 {[%emt 0:00:08]} 5. d4 {[%emt 0:00:11]} d5 {[%emt 0:00:09]} 6. Bd3 {[%emt 0:00:07]} Be7 {[%emt 0:00:08]} 7. O-O {[%emt 0:00:14]} Bf5 {[%emt 0:00:08]} 8. Re1 {[%emt 0:00:27]} O-O {[%emt 0:00:14]} 9. Nbd2 $1 {[%emt 0:00:21][%cal Rd2e4,Bb1d2,Bd2f1,Bf1h2][%mdl 4] is more profitable than 9.c4 at the moment. C42: Petroff Defence: 3 Nxe5 and unusual White 3rd moves.} Nd6 $1 {[%emt 0:00:09]} 10. Nf1 {[%emt 0:00:35]} Bxd3 {[%emt 0:00:12]} 11. Qxd3 {[%emt 0:00:06] The position is equal.} c6 {[%emt 0:00:04]} 12. Bf4 {[%emt 0:01:23]} Na6 {[%emt 0:00:06]} 13. h4 {[%emt 0:01:22]} Nc7 {[%emt 0:00:43]} 14. Ng5 {[%emt 0:02:36][%csl Gg5][%cal Rd3h7]} g6 {[%emt 0:00:05]} 15. Nh2 {[%emt 0:00:49] [#]} (15. Ne3 $5 {[%cal Re3g4]}) 15... Qd7 $146 {[%emt 0:01:11] Against Ng4} ({Predecessor:} 15... f6 16. Ne6 Nxe6 17. Rxe6 Qd7 18. Rae1 Ne4 19. Rxe7 Qxe7 20. f3 f5 21. Bg5 Qb4 {1-0 (32) Brkic,A (2621)-Matlakov,M (2682) Riga 2021}) 16. h5 {[%emt 0:03:30]} Bxg5 {[%emt 0:07:40]} 17. Bxg5 {[%emt 0:00:28][%cal Bf4g5,Bg5f6,Bf6e5][%mdl 32]} Rfe8 {[%emt 0:00:10] Inhibits Re7.} 18. hxg6 {[%emt 0:10:14]} hxg6 {[%emt 0:04:03]} 19. Bf6 {[%emt 0:04:34]} Rxe1+ {[%emt 0:02:51]} 20. Rxe1 {[%emt 0:00:33]} Re8 {[%emt 0:00:04]} 21. Rf1 {[%emt 0:01:21]} Na6 {[%emt 0:30:25]} (21... Qe6 $11 22. Qf3 (22. Be5 Re7 $11) 22... Qf5) 22. Be5 $1 $16 {[%emt 0:08:47]} Qe6 {[%emt 0:11:30]} (22... Nc4 $142) 23. f4 {[%emt 0:16:47][%cal Of4f5]} Nb8 {[%emt 0:05:51]} 24. Qa3 {[%emt 0:31:20][%csl LRa7,LRd6]} Ne4 {[%emt 0:01:37]} 25. f5 $40 {[%emt 0:02:01][%mdl 128] White mounts an attack.} gxf5 {[%emt 0:00:19]} 26. Qh3 {[%emt 0:00:04][%csl Ge5][%cal Rh3h8]} f6 {[%emt 0:00:07]} 27. Rxf5 {[%emt 0:03:14][%cal Oh2g4]} Nd7 {[%emt 0:01:17]} (27... fxe5 $2 28. Qg4+ Kh7 29. Rh5+ Qh6 30. Qf5+ Kg7 31. Rxh6 Kxh6 32. Qf7 $18) 28. Bf4 {[%emt 0:04:53][%cal Oh2g4]} Kf8 {[%emt 0:05:08]} 29. Qa3+ {[%emt 0:04:04]} (29. Qh7 $5 {[%cal Rf4h6]} Qf7 30. Qh4 $14) 29... Kg7 {[%emt 0:03:54]} 30. Rh5 {[%emt 0:00:07]} (30. Qh3 Rh8 31. Rh5 Qxh3 32. Rxh3 Rxh3 33. gxh3 Nb6 $11) 30... a6 {[%emt 0:02:08]} ({Black should try} 30... Nf8 $14) 31. Qb3 {[%emt 0:02:08]} b6 {[%emt 0:02:14]} 32. Qf3 {[%emt 0:00:11]} Rh8 {[%emt 0:00:57]} 33. Rxh8 {[%emt 0:00:15]} Kxh8 {[%emt 0:00:01]} 34. Qh5+ {[%emt 0:00:21]} Kg8 {[%emt 0:00:02]} 35. Qg6+ {[%emt 0:02:46]} (35. Ng4 $1 $16 {[%cal Rg4h6]}) 35... Kf8 $11 {[%emt 0:00:24]} 36. Ng4 {[%emt 0:00:11]} Ke7 {[%emt 0:06:04]} (36... Qf7 37. Qf5 $16) 37. Nh6 {[%emt 0:01:06]} Kd8 {[%emt 0:01:49] Against Bc7+} 38. Nf7+ {[%emt 0:00:21]} Ke7 {[%emt 0:00:01]} 39. Nh6 {[%emt 0:00:11]} Kd8 {[%emt 0:00:02] Against Bc7+} 40. Nf5 {[%emt 0:00:00]} (40. Qg7 $5 {[%cal Rg7h8]}) 40... Kc8 {[%emt 0:00:00]} (40... Nf8 $11 41. Qg7 Ke8) 41. Qg4 $14 {[%emt 0:08:32][%cal Of5d6] Nd6+! is the strong threat.} Kd8 {[%emt 0:06:06]} 42. Qh3 $1 {[%emt 0:00:42]} Qe8 {[%emt 0:07:32] Inhibits Qh8.} 43. Qh7 {[%emt 0:04:26]} ({White should play} 43. Bh2 $1 $16) 43... Ng5 {[%emt 0:06:36]} 44. Bxg5 {[%emt 0:02:54] White is more active.} fxg5 {[%emt 0:00:20][%mdl 4096] Endgame KQN-KQN} 45. Qg7 {[%emt 0:01:35]} Qe1+ {[%emt 0:07:30]} 46. Kh2 {[%emt 0:00:03]} Qd2 $1 {[%emt 0:00:06] Strongly threatening ...Qf4+.} 47. Qe7+ {[%emt 0:00:14]} Kc7 {[%emt 0:06:03]} 48. Qd6+ {[%emt 0:00:29]} Kd8 {[%emt 0:00:01]} 49. Ne7 {[%emt 0:09:20]} (49. Qxc6 $2 Qf4+ 50. Ng3 Qh4+ 51. Kg1 Qxd4+ 52. Kf1 Qf4+ 53. Ke2 Qxg3 $19) 49... Qxc2 {[%emt 0:01:01]} (49... Qf4+ $2 50. Qxf4 gxf4 51. Nxc6+ Ke8 52. Kh3 $18) ({Better is} 49... Qf2 $1 $14 50. Nxc6+ Kc8) 50. Nxc6+ $18 {[%emt 0:00:04]} Kc8 {[%emt 0:00:03]} 51. Ne7+ {[%emt 0:00:08]} ({Not} 51. Qxd5 Qh7+ 52. Kg3 (52. Kg1 Qb1+ 53. Kh2 Qh7+ 54. Kg1 Qb1+ 55. Kh2 Qh7+ $16) 52... Qd3+ 53. Qf3 Qh7 $16) 51... Kd8 {[%emt 0:00:02] Threatens to win with ...Qh7+.} 52. Nc6+ $2 {[%emt 0:00:13]} ({White has to play} 52. Nxd5 $18 {And now Qe7+ would win.} Qh7+ 53. Kg1 Qb1+ 54. Kf2 (54. Kh2 Qh7+ 55. Kg1 Qb1+ 56. Kf2 Qc2+ 57. Kg1 Qb1+ $16) 54... Qc2+ 55. Kg1 Qb1+ 56. Kf2 (56. Kh2 Qh7+ 57. Kg1 Qb1+ $16) 56... Qc2+ 57. Kf3 Qd1+ 58. Ke3 Qc1+ 59. Kd3 Qf1+ 60. Kc3 Qe1+ 61. Kd3 Qf1+ 62. Kc3 Qe1+ 63. Kc2 Qe2+ 64. Kc3 Qe1+) 52... Kc8 $14 {[%emt 0:00:03]} 53. Ne7+ $2 {[%emt 0:01:21]} (53. Qe6 $14) 53... Kd8 $1 $18 {[%emt 0:00:03]} 54. Nxd5 {[%emt 0:00:06] Black must now prevent Qe7+.} Qh7+ {[%emt 0:00:05]} 55. Kg1 $1 {[%emt 0:00:10]} Qb1+ {[%emt 0:00:04]} 56. Kh2 $2 {[%emt 0:00:13]} (56. Kf2 $1 $18 {Threatening mate with Qe7+.} Qc2+ 57. Ke3 Qc1+ 58. Kd3 Qf1+ 59. Kc3 Qe1+ 60. Kc4 Qe2+ 61. Kc3 Qe1+ 62. Kc2 Qe2+ 63. Kc3 Qe1+) 56... Qh7+ $11 {[%emt 0:00:04]} 57. Kg1 $2 {[%emt 0:02:29][%mdl 8192]} (57. Kg3 $11 Qf5 58. Kh2) 57... Qb1+ $18 {[%emt 0:00:07]} 58. Kf2 $1 {[%emt 0:00:01] White wants to mate with Qe7+.} Qc2+ {[%emt 0:00:15] [#]} 59. Ke3 $1 {[%emt 0:00:43]} Qc1+ {[%emt 0:00:16] [#]} 60. Kd3 $1 {[%emt 0:00:28] aiming for Qe7+.} Kc8 {[%emt 0:01:32]} (60... Qb1+ {is a better defense.} 61. Kc3 Qc1+ 62. Kb3 Qd1+ 63. Ka3 Qd3+ 64. b3 Qb5) 61. Qe6 {[%emt 0:02:01] Hoping for Qe8+.} Qf1+ {[%emt 0:01:53]} 62. Kc3 {[%emt 0:00:17] White is winning.} Qc1+ {[%emt 0:00:19]} 63. Kb3 {[%emt 0:00:20]} Qd1+ {[%emt 0:00:06]} 64. Ka3 {[%emt 0:00:16] Qe8+ would kill now.} Qd3+ {[%emt 0:00:06]} 65. b3 {[%emt 0:00:03] White threatens Qe8+ and mate.} Qb5 {[%emt 0:00:05]} 66. Kb2 {[%emt 0:01:16] Weighted Error Value: White=0.23 (precise) /Black=0.15 (very precise)} ({Inferior is} 66. Qd6 Qa5+ 67. Kb2 Qd2+ 68. Kb1 Qd1+ 69. Kb2 Qd2+ 70. Ka3 Qa5+ 71. Kb2 Qd2+ $11) 1-0

[Event "GCT Superbet Romania 2022"]
[Site "Bucharest"]
[Date "2022.05.09"]
[Round "5.5"]
[White "Rapport, Richard"]
[Black "Dominguez Perez, Leinier"]
[Result "1/2-1/2"]
[ECO "C20"]
[WhiteElo "2776"]
[BlackElo "2753"]
[Annotator "TA"]
[PlyCount "100"]
[EventDate "2022.05.05"]
[EventType "tourn"]
[EventCountry "ROU"]
[SourceTitle "playchess.com"]
[Source "ChessBase"]
[SourceQuality "1"]
[TimeControl "40/5400+30:1800+30"]

{[%evp 9,100,13,19,10,12,0,0,-8,0,-14,7,8,8,0,15,10,11,27,14,14,12,5,28,4,2,2,6,6,4,0,5,5,5,5,0,0,8,9,12,10,18,4,6,0,0,0,0,0,0,0,0,0,0,-22,0,0,0,0,0,0,0,0,0,0,0,0,0,0,0,0,0,0,0,0,0,0,0,0,0,0,0,0,0,0,0,0,0,0,0,0,0,0,0]} 1. e4 {[%emt 0:00:51]} e5 {[%emt 0:00:06]} 2. Ne2 {[%emt 0:00:37]} Nf6 {[%emt 0:03:11]} 3. d4 {[%emt 0:00:20]} exd4 {[%emt 0:10:52]} 4. e5 {[%emt 0:01:03] [#]} Ne4 $146 {[%emt 0:00:06]} ({Predecessor:} 4... Ng4 5. Nxd4 Nxe5 6. Qe2 Qe7 7. f4 Nec6 8. Nb5 Qxe2+ 9. Bxe2 Na6 10. N1c3 Bc5 {0-1 (44) Torngren,G (2243)-Wernberg,H (2208) Helsingborg 2021}) 5. Qxd4 {[%emt 0:02:10]} d5 {[%emt 0:00:12] [#] White must now prevent ...Bc5.} 6. exd6 $1 {[%emt 0:00:18] C20: 1 e4 e5: Unusual White second moves.} Nxd6 {[%emt 0:00:31]} 7. Nbc3 {[%emt 0:01:45]} Nc6 {[%emt 0:00:11] Prevents Qe5+.} 8. Qa4 {[%emt 0:01:32]} Bd7 {[%emt 0:28:35]} 9. Bd2 {[%emt 0:03:10]} g6 {[%emt 0:04:16]} 10. O-O-O {[%emt 0:03:00]} Bg7 {[%emt 0:00:40]} 11. Ne4 {[%emt 0:00:17]} Nxe4 {[%emt 0:01:53]} 12. Qxe4+ {[%emt 0:00:37]} Qe7 {[%emt 0:00:06]} 13. Nc3 {[%emt 0:26:14]} O-O-O {[%emt 0:00:08] [#] Threatens to win with ...Bxc3.} 14. Qxe7 {[%emt 0:00:27]} Nxe7 {[%emt 0:00:06]} 15. Bc4 {[%emt 0:05:55]} Bc6 {[%emt 0:02:43]} 16. Rhe1 {[%emt 0:03:53]} Nd5 {[%emt 0:07:02] The position is equal.} 17. Nb5 {[%emt 0:12:06]} Kb8 {[%emt 0:00:05]} 18. Bg5 {[%emt 0:00:40]} Bf6 {[%emt 0:00:24]} 19. h4 {[%emt 0:04:47]} Bxg5+ {[%emt 0:02:17]} 20. hxg5 {[%emt 0:00:02]} Nb6 {[%emt 0:00:09][%csl LRc4,LRg2]} 21. Bf1 {[%emt 0:00:22]} Rxd1+ {[%emt 0:14:42]} 22. Rxd1 {[%emt 0:00:51]} Nc8 {[%emt 0:07:21]} 23. Nd4 {[%emt 0:02:57]} Bd7 {[%emt 0:00:29]} 24. Bd3 {[%emt 0:02:47]} h5 {[%emt 0:03:24]} 25. b4 {[%emt 0:03:04]} Re8 {[%emt 0:02:07]} 26. c4 {[%emt 0:06:46]} b6 {[%emt 0:04:37]} 27. f3 {[%emt 0:12:21]} c5 {[%emt 0:02:42]} 28. bxc5 {[%emt 0:00:06]} bxc5 {[%emt 0:00:02]} 29. Nb3 {[%emt 0:00:10]} Ba4 {[%emt 0:00:05]} 30. Kd2 {[%emt 0:02:04]} Kc7 {[%emt 0:01:11]} 31. Rf1 {[%emt 0:01:56]} Bxb3 {[%emt 0:01:28]} 32. axb3 $11 {[%emt 0:00:01][%mdl 4096] Endgame KRB-KRN} a5 {[%emt 0:00:12]} 33. Ra1 {[%emt 0:02:07]} Kb6 {[%emt 0:00:02]} 34. Be4 {[%emt 0:01:36]} Nd6 {[%emt 0:04:16]} 35. Bd5 {[%emt 0:00:08]} Re5 {[%emt 0:00:29]} 36. f4 {[%emt 0:00:15]} Re7 {[%emt 0:00:02]} 37. Re1 {[%emt 0:01:01]} Rxe1 {[%emt 0:00:43]} 38. Kxe1 {[%emt 0:00:02] KB-KN} Kc7 {[%emt 0:00:13]} 39. Kd2 {[%emt 0:00:53]} Kd7 {[%emt 0:01:07]} 40. f5 {[%emt 0:00:00]} gxf5 {[%emt 0:00:00] Strongly threatening ...Ke7.} 41. Ke3 {[%emt 0:03:13]} Ke7 {[%emt 0:00:59] And now ...f6 would win.} 42. Kf4 {[%emt 0:01:45]} f6 $1 {[%emt 0:02:03]} 43. g3 $1 {[%emt 0:01:49]} fxg5+ {[%emt 0:01:03]} 44. Kxg5 {[%emt 0:00:06]} Ne4+ {[%emt 0:00:03]} 45. Bxe4 {[%emt 0:00:09]} fxe4 {[%emt 0:00:02] KP-KP} 46. Kf4 {[%emt 0:00:06]} Kf6 {[%emt 0:00:03]} 47. Kxe4 {[%emt 0:00:05] aiming for Kd5.} Ke6 {[%emt 0:00:02]} 48. Kf4 {[%emt 0:00:06] White threatens Kg5 and mate.} Kf6 {[%emt 0:00:02]} 49. Ke4 {[%emt 0:00:07] Kd5 is the strong threat.} Ke6 {[%emt 0:00:03]} 50. Kf4 {[%emt 0:00:05]} Kf6 $1 {[%emt 0:00:06] Not much happened in this game.  Weighted Error Value: White=0.02 (flawless) /Black=0.02 (flawless)} 1/2-1/2

[Event "GCT Superbet Romania 2022"]
[Site "Bucharest"]
[Date "2022.05.11"]
[Round "6.1"]
[White "So, Wesley"]
[Black "Rapport, Richard"]
[Result "1/2-1/2"]
[ECO "D46"]
[WhiteElo "2766"]
[BlackElo "2776"]
[Annotator "TA"]
[PlyCount "100"]
[EventDate "2022.05.05"]
[EventType "tourn"]
[EventCountry "ROU"]
[SourceTitle "playchess.com"]
[Source "ChessBase"]
[SourceQuality "1"]
[TimeControl "40/5400+30:1800+30"]

{[%evp 20,100,12,0,24,20,7,10,17,17,16,14,27,19,24,18,24,26,25,24,20,19,22,26,26,22,35,31,31,31,42,39,40,43,50,47,47,47,47,39,41,39,39,39,39,39,39,39,39,39,46,47,50,34,54,54,55,30,54,54,54,44,54,54,54,20,20,20,50,37,50,50,50,50,50,50,50,0,50,50,50,0,50]} 1. d4 {[%emt 0:00:08] Lutz,C} d5 {[%emt 0:01:09]} 2. c4 {[%emt 0:00:13]} c6 {[%emt 0:00:06]} 3. Nc3 {[%emt 0:00:53]} Nf6 {[%emt 0:00:10]} 4. e3 {[%emt 0:00:07]} e6 {[%emt 0:01:20]} 5. Nf3 {[%emt 0:00:07]} Nbd7 {[%emt 0:00:14]} 6. Qc2 {[%emt 0:00:44]} Bd6 {[%emt 0:00:51]} 7. Bd3 {[%emt 0:00:41]} O-O {[%emt 0:00:23]} 8. O-O {[%emt 0:00:13]} dxc4 {[%emt 0:03:14]} 9. Bxc4 {[%emt 0:00:07]} a6 {[%emt 0:01:24]} 10. a4 {[%emt 0:01:01]} c5 {[%emt 0:01:55]} 11. Rd1 {[%emt 0:00:11] has lost popularity (11.dxc5).} Qc7 {[%emt 0:01:54] has lost popularity (11...cxd4). D46: Semi-Slav: 5 e3 Nbd7 6 Bd3, Black avoids the Meran.} 12. Ne4 {[%emt 0:11:46]} Nxe4 {[%emt 0:02:25]} 13. Qxe4 {[%emt 0:00:10]} Nf6 {[%emt 0:01:18]} 14. Qh4 {[%emt 0:00:09]} cxd4 {[%emt 0:00:21]} 15. Bd3 {[%emt 0:00:11] [#]} e5 $146 {[%emt 0:08:55]} ({Predecessor:} 15... h6 16. e4 Nd7 17. Bxh6 gxh6 18. Rac1 Qd8 19. Qxh6 Qf6 20. Qxf6 Nxf6 21. e5 Be7 22. exf6 Bxf6 {0-1 (56) Van Wely,L (2646)-Kasparov,G (2851) Internet 2000 CBM 076 [Lutz,C]}) 16. exd4 {[%emt 0:00:30]} e4 {[%emt 0:00:14]} 17. Bxe4 {[%emt 0:00:48]} Nxe4 {[%emt 0:00:08]} 18. Qxe4 {[%emt 0:00:07]} Qd7 {[%emt 0:00:36]} 19. Bf4 {[%emt 0:25:32]} Re8 {[%emt 0:04:50]} 20. Ne5 {[%emt 0:00:06]} Qf5 {[%emt 0:02:23]} 21. Qxf5 {[%emt 0:00:16]} (21. Qd5 {with more complications.} Be6 22. Qxd6 Rad8 23. Qa3) 21... Bxf5 {[%emt 0:00:03]} 22. Nd3 {[%emt 0:00:14]} Bxd3 {[%emt 0:08:47]} 23. Bxd6 {[%emt 0:00:10]} Bc2 {[%emt 0:00:40]} 24. Rdc1 {[%emt 0:00:20]} Rac8 {[%emt 0:05:03][%cal Oc2a4]} 25. a5 {[%emt 0:01:32]} f6 {[%emt 0:12:26]} 26. f3 {[%emt 0:01:56]} Bb3 {[%emt 0:03:37]} 27. Rxc8 {[%emt 0:00:41]} Rxc8 $14 {[%emt 0:00:03][%mdl 4096] Endgame KRB-KRB} 28. Re1 {[%emt 0:00:14]} Ba4 {[%emt 0:06:00]} 29. Ba3 {[%emt 0:04:18]} Re8 {[%emt 0:03:01]} 30. Rxe8+ {[%emt 0:00:35]} Bxe8 {[%emt 0:00:03] KB-KB} 31. d5 {[%emt 0:00:06]} Bf7 {[%emt 0:00:48]} 32. d6 {[%emt 0:00:04] [#] White threatens d7 and mate.} Be8 {[%emt 0:00:07]} 33. Kf2 {[%emt 0:00:05]} Kf7 {[%emt 0:00:05]} 34. Ke3 {[%emt 0:00:06]} Ke6 {[%emt 0:00:08]} 35. Kd4 {[%emt 0:00:08]} Bc6 {[%emt 0:01:08]} 36. h4 {[%emt 0:00:16]} h5 {[%emt 0:03:17]} 37. Bb4 {[%emt 0:00:05]} Bb5 {[%emt 0:01:24]} 38. g4 {[%emt 0:00:26]} hxg4 {[%emt 0:00:28]} 39. fxg4 {[%emt 0:00:05]} Be2 {[%emt 0:00:13]} 40. Kc5 {[%emt 0:00:00]} Kd7 {[%emt 0:00:00]} 41. Kb6 {[%emt 0:01:02]} Kc8 {[%emt 0:01:26]} 42. d7+ {[%emt 0:00:54]} Kxd7 {[%emt 0:00:06]} 43. Kxb7 {[%emt 0:00:05]} Ke6 {[%emt 0:00:18]} 44. Bc3 {[%emt 0:00:27]} Kf7 {[%emt 0:00:35]} 45. b4 {[%emt 0:00:05]} Bb5 {[%emt 0:00:19]} 46. h5 {[%emt 0:00:09]} Be2 {[%emt 0:00:08]} 47. Bb2 {[%emt 0:00:05]} Bb5 {[%emt 0:00:09]} 48. Bc3 {[%emt 0:00:04]} Be2 {[%emt 0:00:05]} 49. Bd2 {[%emt 0:00:04]} Bb5 {[%emt 0:00:10]} 50. Bc3 {[%emt 0:00:04]} Be2 {[%emt 1:01:03] Weighted Error Value: White=0.06 (flawless) /Black=0.05 (flawless)} 1/2-1/2

[Event "GCT Superbet Romania 2022"]
[Site "Bucharest"]
[Date "2022.05.11"]
[Round "6.2"]
[White "Vachier-Lagrave, Maxime"]
[Black "Aronian, Levon"]
[Result "0-1"]
[ECO "D39"]
[WhiteElo "2750"]
[BlackElo "2765"]
[Annotator "TA"]
[PlyCount "50"]
[EventDate "2022.05.05"]
[EventType "tourn"]
[EventCountry "ROU"]
[SourceTitle "playchess.com"]
[Source "ChessBase"]
[SourceQuality "1"]
[TimeControl "40/5400+30:1800+30"]

{[%evp 19,50,13,29,29,30,0,0,0,0,0,0,-13,-4,-41,-36,-43,-26,-39,-33,-34,-20,-90,-74,-76,-95,-77,-71,-114,-114,-106,-119,-692,-697]} 1. d4 {[%emt 0:00:02]} Nf6 {[%emt 0:00:12]} 2. c4 {[%emt 0:00:03]} e6 {[%emt 0:00:04]} 3. Nc3 {[%emt 0:00:03]} Bb4 {[%emt 0:00:06]} 4. Nf3 {[%emt 0:00:03]} d5 {[%emt 0:00:06]} 5. Bg5 {[%emt 0:00:11]} dxc4 {[%emt 0:00:21]} 6. e4 {[%emt 0:00:08]} c5 {[%emt 0:00:09]} 7. Bxc4 {[%emt 0:00:06]} cxd4 {[%emt 0:00:13]} 8. Nxd4 {[%emt 0:00:08]} Bxc3+ {[%emt 0:00:23]} 9. bxc3 {[%emt 0:00:06]} Qa5 {[%emt 0:00:04]} 10. Bb5+ {[%emt 1:34:40]} Nbd7 {[%emt 0:00:10]} 11. Bxf6 {[%emt 0:00:00] This bishop pair is nice. D39: Queen's Gambit Declined: Ragozin Defence with 5 Bg5 dxc4.} Qxc3+ {[%emt 0:00:06]} 12. Ke2 {[%emt 0:00:00]} Qb2+ {[%emt 0:00:06]} ({Don't do} 12... gxf6 13. Rc1 Qb4 14. Qa4 Qxa4 15. Bxa4 $11) 13. Qd2 {[%emt 0:00:00] The position is equal.} Qxd2+ {[%emt 0:00:07]} 14. Kxd2 {[%emt 0:00:00]} gxf6 {[%emt 0:00:07][%cal Bg7f6,Bf6f5,Bf5f4][%mdl 32]} 15. Rac1 {[%emt 0:00:00]} O-O {[%emt 0:11:59] [#]} 16. Rc7 $146 {[%emt 0:00:00]} ({Predecessor:} 16. Rhd1 Nb6 17. Nb3 f5 18. exf5 exf5 19. Nc5 Be6 20. Nxb7 Bxa2 21. Ke1 a5 22. Rc6 {0-1 (57) Wimmer,R (2111)-Kunzmann,H (2202) ICCF email 2018}) 16... Rd8 {[%emt 0:00:23]} 17. Ke3 {[%emt 0:00:00][%cal Od4e6]} Nb6 {[%emt 0:05:24]} ({Reject} 17... Ne5 18. Be2 $11) 18. Nb3 {[%emt 0:00:00]} f5 {[%emt 0:02:31]} 19. Bd3 {[%emt 0:00:00]} Rb8 {[%emt 0:07:12] aiming for ...fxe4.} 20. f4 {[%emt 0:00:00] [#]} (20. f3 $1 $11) 20... e5 $1 $17 {[%emt 0:05:32]} 21. fxe5 {[%emt 0:00:00]} f4+ $1 {[%emt 0:01:26]} 22. Kd2 {[%emt 0:00:00]} Be6 {[%emt 0:00:14]} 23. Kc3 {[%emt 0:00:00]} Rbc8 {[%emt 0:04:43]} 24. Rxc8 {[%emt 0:00:00]} Rxc8+ {[%emt 0:00:11]} 25. Kd4 $2 {[%emt 0:00:00][%mdl 8192] [#]} (25. Kd2 $17) 25... Na4 $1 {[%emt 0:00:45] Black took control after the opening.  Weighted Error Value: White=0.69/Black=0.02 (flawless)} 0-1